fUST/lending_fUST_20250530
["ID","MTS","AMOUNT","RATE_DAILY","PERIOD"]
[363012618,1748549457538,-430.0,0.00020821,2]
[363012619,1748549457553,-1910.48,0.00020821,2]
[363012620,1748549457567,-1205.75,0.00020821,2]
[363012621,1748549457581,-984.37,0.00020821,2]
[363012622,1748549457594,-7352.62,0.00020821,2]
[363012623,1748549457612,-430.0,0.00020821,2]
[363012624,1748549457623,-594.42,0.00020821,2]
[363012626,1748549457633,-151.0,0.00020821,2]
[363012628,1748549457643,-430.0,0.00020821,2]
[363012629,1748549457653,-1874.18,0.00020821,2]
[363012631,1748549457663,-430.0,0.00020821,2]
[363012633,1748549457672,-12309.9,0.00020821,2]
[363012635,1748549457681,-430.0,0.00020821,2]
[363012637,1748549457692,-5190.7,0.00020821,2]
[363012640,1748549457702,-7566.48,0.00020821,2]
[363012642,1748549457711,-5362.8,0.00020821,2]
[363012644,1748549457721,-1104.35,0.00020821,2]
[363012645,1748549457729,-6241.32,0.00020821,2]
[363012647,1748549457738,-430.0,0.00020821,2]
[363012649,1748549457747,-430.0,0.00020821,2]
[363012651,1748549457757,-430.0,0.00020821,2]
[363012653,1748549457766,-641.57,0.00020821,2]
[363012655,1748549457775,-447.91,0.00020821,2]
[363012657,1748549457784,-1205.76,0.00020821,2]
[363012659,1748549457793,-404.96000628,0.00020821,2]
[363012661,1748549457803,-3425.09,0.00020821,2]
[363012685,1748549458007,-5494.42,0.00020821,2]
[363012687,1748549458020,-151.0,0.00020852,2]
[363012689,1748549458030,-151.0,0.00020852,2]
[363012691,1748549458039,-151.0,0.00020852,2]
[363012693,1748549458049,-151.0,0.00020852,2]
[363012695,1748549458059,-276.452001,0.00020852,2]
[363012697,1748549458069,-276.452001,0.00020852,2]
[363012699,1748549458078,-420.0,0.00020887,2]
[363012701,1748549458088,-420.0,0.00020888,2]
[363012703,1748549458100,-151.0,0.000209,4]
[363012705,1748549458109,-3014.44826507,0.00020934,4]
[363012707,1748549458118,-889.998081,0.00020958,2]
[363012709,1748549458127,-889.998081,0.00020958,2]
[363012711,1748549458137,-151.0,0.00020958,2]
[363012713,1748549458146,-155.372527,0.00020958,2]
[363012715,1748549458155,-1586.339018,0.00020958,2]
[363012717,1748549458164,-1586.339018,0.00020958,2]
[363012719,1748549458173,-248.268931,0.00020958,2]
[363012721,1748549458183,-248.268931,0.00020958,2]
[363012723,1748549458192,-903.15213563,0.00020969,2]
[363012725,1748549458201,-99115.0,0.00021,2]
[363012727,1748549458210,-151.0,0.00021,2]
[363012729,1748549458220,-151.0,0.00021,2]
[363012731,1748549458229,-151.0,0.00021,2]
[363012733,1748549458238,-260.334711,0.00021,2]
[363012735,1748549458247,-260.334711,0.00021,2]
[363012737,1748549458256,-151.0,0.00021,2]
[363012739,1748549458264,-151.0,0.00021,2]
[363012741,1748549458274,-151.0,0.00021,2]
[363012742,1748549458283,-151.0,0.00021,4]
[363012744,1748549458292,-151.0,0.00021,2]
[363012746,1748549458302,-4015.542169,0.00021,2]
[363012749,1748549458311,-4015.542169,0.00021,2]
[363012750,1748549458320,-239.490931,0.00021,2]
[363012752,1748549458329,-239.490931,0.00021,2]
[363012754,1748549458338,-151.0,0.00021,2]
[363012756,1748549458347,-151.0,0.00021,2]
[363012758,1748549458356,-302.068116,0.00021,2]
[363012760,1748549458365,-302.068116,0.00021,2]
[363012762,1748549458374,-4029.361053,0.00021,2]
[363012764,1748549458383,-260.551144,0.00021,2]
[363012766,1748549458393,-260.551144,0.00021,2]
[363012768,1748549458402,-320.97949,0.00021,2]
[363012770,1748549458411,-320.97949,0.00021,2]
[363012772,1748549458420,-151.0,0.00021,2]
[363012774,1748549458429,-276.452001,0.00021,2]
[363012776,1748549458438,-1915.52743,0.00021,2]
[363012778,1748549458447,-276.452001,0.00021,2]
[363012780,1748549458456,-678.591457,0.00021,2]
[363012782,1748549458465,-678.591457,0.00021,2]
[363012784,1748549458474,-151.0,0.00021,2]
[363012786,1748549458483,-151.0,0.00021,2]
[363012788,1748549458492,-152.379212,0.00021,2]
[363012790,1748549458502,-168.8914,0.00021,2]
[363012792,1748549458511,-168.8914,0.00021,2]
[363012794,1748549458521,-262.046232,0.00021,2]
[363012796,1748549458530,-262.046232,0.00021,2]
[363012798,1748549458539,-151.0,0.00021,2]
[363012800,1748549458548,-355.29,0.00021,2]
[363012802,1748549458557,-151.0,0.00021,2]
[363012804,1748549458566,-183.865906,0.00021,2]
[363012806,1748549458575,-1000.0,0.00021,2]
[363012808,1748549458583,-635.963784,0.00021,2]
[363012810,1748549458593,-635.963784,0.00021,2]
[363012811,1748549458602,-151.0,0.00021,2]
[363012813,1748549458615,-151.0,0.00021,2]
[363012815,1748549458624,-1506.744032,0.00021,2]
[363012817,1748549458633,-1506.744032,0.00021,2]
[363012819,1748549458643,-151.0,0.00021,2]
[363012821,1748549458654,-151.0,0.00021,2]
[363012823,1748549458664,-962.473811,0.00021,2]
[363012825,1748549458673,-962.473811,0.00021,2]
[363012827,1748549458683,-342.862776,0.00021,2]
[363012829,1748549458694,-342.862776,0.00021,2]
[363012831,1748549458703,-1486.634382,0.00021,2]
[363012833,1748549458712,-1486.634382,0.00021,2]
[363012835,1748549458721,-151.0,0.00021,2]
[363012837,1748549458730,-1800.0,0.00021068,2]
[363012839,1748549458739,-155.496671,0.00021072,2]
[363012841,1748549458748,-151.0,0.00021072,2]
[363012843,1748549458757,-154.450598,0.00021072,2]
[363012845,1748549458766,-281.172433,0.00021072,2]
[363012847,1748549458775,-281.172433,0.00021072,2]
[363012849,1748549458784,-340.669478,0.00021072,2]
[363012851,1748549458792,-340.669478,0.00021072,2]
[363012853,1748549458802,-151.0,0.00021072,2]
[363012855,1748549458810,-151.0,0.00021072,2]
[363012857,1748549458819,-151.0,0.00021072,2]
[363012859,1748549458828,-244.505466,0.00021072,2]
[363012861,1748549458837,-244.505466,0.00021072,2]
[363012863,1748549458846,-479.369081,0.00021084,2]
[363012865,1748549458855,-479.369081,0.00021084,2]
[363012867,1748549458864,-151.0,0.00021084,2]
[363012869,1748549458874,-842.5625,0.0002109,7]
[363012870,1748549458883,-212.70147903,0.0002109,7]
[363012872,1748549458893,-12660.97845086,0.0002109,7]
[363012875,1748549458902,-314.78059479,0.0002109,7]
[363012877,1748549458911,-335.140275,0.00021095,2]
[363012878,1748549458920,-335.140275,0.00021095,2]
[363012880,1748549458929,-151.0,0.00021095,2]
[363012882,1748549458938,-151.0,0.00021095,2]
[363012884,1748549458947,-151.0,0.00021095,2]
[363012886,1748549458957,-463.127135,0.00021095,2]
[363012888,1748549458966,-157.139693,0.00021095,2]
[363012890,1748549458975,-463.127135,0.00021095,2]
[363012892,1748549458984,-157.139693,0.00021095,2]
[363012894,1748549458993,-270.819095,0.00021095,2]
[363012896,1748549459003,-270.819095,0.00021095,2]
[363012898,1748549459012,-424.140348,0.00021095,2]
[363012900,1748549459021,-424.140348,0.00021095,2]
[363012902,1748549459032,-254.242869,0.00021095,2]
[363012904,1748549459041,-254.242869,0.00021095,2]
[363012906,1748549459050,-1558.393227,0.00021095,2]
[363012908,1748549459059,-1558.393227,0.00021095,2]
[363012910,1748549459069,-430.0,0.00021095,2]
[363012912,1748549459078,-430.0,0.00021095,2]
[363012914,1748549459087,-430.0,0.00021095,2]
[363012916,1748549459096,-430.0,0.00021095,2]
[363012918,1748549459105,-151.0,0.00021095,2]
[363012920,1748549459114,-2359.875458,0.00021095,2]
[363012922,1748549459124,-2359.875458,0.00021095,2]
[363012924,1748549459133,-889.998081,0.00021095,2]
[363012926,1748549459142,-889.998081,0.00021095,2]
[363012928,1748549459151,-430.0,0.00021095,2]
[363012930,1748549459160,-430.0,0.00021095,2]
[363012932,1748549459170,-430.0,0.00021095,2]
[363012934,1748549459179,-151.0,0.00021095,2]
[363012936,1748549459188,-430.0,0.00021095,2]
[363012938,1748549459197,-1586.339018,0.00021095,2]
[363012940,1748549459207,-1586.339018,0.00021095,2]
[363012942,1748549459216,-430.0,0.00021095,2]
[363012944,1748549459225,-430.0,0.00021095,2]
[363012946,1748549459234,-430.0,0.00021095,2]
[363012948,1748549459244,-430.0,0.00021095,2]
[363012950,1748549459253,-511.29,0.00021095,2]
[363012952,1748549459262,-430.0,0.00021095,2]
[363012954,1748549459270,-430.0,0.00021095,2]
[363012956,1748549459280,-2547.3,0.00021095,2]
[363012958,1748549459289,-210.25374003,0.00021095,2]
[363012960,1748549459298,-430.0,0.00021095,2]
[363012962,1748549459307,-631.19,0.00021095,2]
[363012964,1748549459316,-430.0,0.00021095,2]
[363012966,1748549459326,-151.0,0.00021095,2]
[363012968,1748549459335,-1493.21,0.00021095,2]
[363012970,1748549459344,-430.0,0.00021095,2]
[363012972,1748549459354,-430.0,0.00021095,2]
[363012974,1748549459363,-657.73,0.00021095,2]
[363012976,1748549459373,-430.0,0.00021095,2]
[363012978,1748549459382,-151.0,0.00021095,2]
[363012980,1748549459391,-430.0,0.00021095,2]
[363012982,1748549459400,-430.0,0.00021095,2]
[363012984,1748549459410,-430.0,0.00021095,2]
[363012986,1748549459419,-151.0,0.00021095,2]
[363012988,1748549459428,-248.268931,0.00021095,2]
[363012990,1748549459437,-248.268931,0.00021095,2]
[363012992,1748549459446,-1197.968823,0.00021095,2]
[363012994,1748549459456,-1197.968823,0.00021095,2]
[363012996,1748549459465,-430.0,0.00021095,2]
[363012998,1748549459475,-1289.81,0.00021095,2]
[363013000,1748549459484,-430.0,0.00021095,2]
[363013002,1748549459492,-430.0,0.00021095,2]
[363013004,1748549459502,-430.0,0.00021095,2]
[363013006,1748549459511,-430.0,0.00021095,2]
[363013007,1748549459520,-430.0,0.00021095,2]
[363013009,1748549459529,-1598.38,0.00021095,2]
[363013011,1748549459539,-430.0,0.00021095,2]
[363013013,1748549459548,-2053.27,0.00021095,2]
[363013015,1748549459558,-1525.7,0.00021095,2]
[363013018,1748549459567,-566.83,0.00021095,2]
[363013020,1748549459576,-430.0,0.00021095,2]
[363013022,1748549459585,-924.2,0.00021095,2]
[363013023,1748549459595,-1613.56,0.00021095,2]
[363013025,1748549459605,-1663.74,0.00021095,2]
[363013027,1748549459616,-635.963784,0.00021095,2]
[363013029,1748549459625,-434.48,0.00021095,2]
[363013031,1748549459635,-163.50399394,0.00021095,2]
[363013034,1748549459645,-635.963784,0.00021095,2]
[363013035,1748549459654,-541.63,0.00021095,2]
[363013037,1748549459664,-835.53,0.00021095,2]
[363013039,1748549459673,-430.0,0.00021095,2]
[363013041,1748549459682,-430.0,0.00021095,2]
[363013044,1748549459692,-697.06,0.00021095,2]
[363013046,1748549459701,-171.211019,0.00021095,2]
[363013048,1748549459710,-719.7,0.00021095,2]
[363013049,1748549459719,-171.211019,0.00021095,2]
[363013051,1748549459729,-430.0,0.00021095,2]
[363013053,1748549459738,-430.0,0.00021095,2]
[363013055,1748549459747,-1058.87,0.00021095,2]
[363013058,1748549459757,-430.0,0.00021095,2]
[363013059,1748549459766,-505.83,0.00021095,2]
[363013061,1748549459775,-4239.46,0.00021095,2]
[363013063,1748549459784,-430.0,0.00021095,2]
[363013065,1748549459793,-430.0,0.00021095,2]
[363013067,1748549459803,-430.0,0.00021095,2]
[363013069,1748549459812,-430.0,0.00021095,2]
[363013071,1748549459822,-151.0,0.00021095,2]
[363013073,1748549459831,-684.87,0.00021095,2]
[363013075,1748549459840,-430.0,0.00021095,2]
[363013077,1748549459849,-766.46,0.00021095,2]
[363013079,1748549459858,-1884.25,0.00021095,2]
[363013081,1748549459866,-8614.59,0.00021095,2]
[363013083,1748549459875,-430.0,0.00021095,2]
[363013085,1748549459884,-430.0,0.00021095,2]
[363013087,1748549459893,-9593.71,0.00021095,2]
[363013088,1748549459902,-500.0,0.00021095,2]
[363013089,1748549459910,-430.0,0.00021095,2]
[363013090,1748549459918,-430.0,0.00021095,2]
[363013091,1748549459927,-430.0,0.00021095,2]
[363013092,1748549459936,-2177.87,0.00021095,2]
[363013093,1748549459945,-1506.744032,0.00021095,2]
[363013101,1748549460039,-3170.25,0.00021095,2]
[363013103,1748549460051,-1506.744032,0.00021095,2]
[363013105,1748549460061,-731.21,0.00021095,2]
[363013107,1748549460071,-4753.34,0.00021095,2]
[363013109,1748549460081,-3190.48,0.00021095,2]
[363013111,1748549460091,-151.0,0.00021095,2]
[363013113,1748549460100,-151.0,0.00021095,2]
[363013115,1748549460110,-8930.54,0.00021095,2]
[363013117,1748549460119,-430.0,0.00021095,2]
[363013119,1748549460129,-3276.45,0.00021095,2]
[363013121,1748549460138,-1845.48,0.00021095,2]
[363013123,1748549460147,-430.0,0.00021095,2]
[363013125,1748549460157,-962.473811,0.00021095,2]
[363013127,1748549460166,-350.48859635,0.00021095,2]
[363013129,1748549460176,-1439.05,0.00021095,2]
[363013132,1748549460185,-962.473811,0.00021095,2]
[363013134,1748549460195,-342.862776,0.00021095,2]
[363013135,1748549460204,-5099.18,0.00021095,2]
[363013137,1748549460213,-430.0,0.00021095,2]
[363013139,1748549460222,-342.862776,0.00021095,2]
[363013141,1748549460232,-1486.634382,0.00021095,2]
[363013143,1748549460242,-476.62247473,0.00021095,2]
[363013145,1748549460251,-1486.634382,0.00021095,2]
[363013147,1748549460260,-2614.13,0.00021095,2]
[363013149,1748549460270,-3219.84,0.00021095,2]
[363013151,1748549460279,-765.63,0.00021095,2]
[363013153,1748549460289,-330.30041715,0.00021095,2]
[363013155,1748549460299,-3876.68,0.00021095,2]
[363013158,1748549460308,-430.0,0.00021095,2]
[363013160,1748549460318,-495.3,0.00021095,2]
[363013162,1748549460328,-2095.37,0.00021095,2]
[363013164,1748549460337,-11864.57,0.00021095,2]
[363013166,1748549460345,-725.41,0.00021095,2]
[363013168,1748549460355,-430.0,0.00021095,2]
[363013170,1748549460364,-574.83,0.00021095,2]
[363013172,1748549460374,-674.31,0.00021095,2]
[363013174,1748549460383,-899.16,0.00021095,2]
[363013176,1748549460392,-953.05,0.00021095,2]
[363013178,1748549460402,-430.0,0.00021095,2]
[363013180,1748549460411,-1910.48,0.00021095,2]
[363013182,1748549460420,-1205.75,0.00021095,2]
[363013184,1748549460431,-984.37,0.00021095,2]
[363013186,1748549460442,-7352.62,0.00021095,2]
[363013188,1748549460451,-430.0,0.00021095,2]
[363013190,1748549460460,-594.42,0.00021095,2]
[363013192,1748549460469,-430.0,0.00021095,2]
[363013194,1748549460479,-151.0,0.00021095,2]
[363013196,1748549460489,-1874.18,0.00021095,2]
[363013198,1748549460498,-430.0,0.00021095,2]
[363013200,1748549460508,-12309.9,0.00021095,2]
[363013202,1748549460517,-430.0,0.00021095,2]
[363013204,1748549460526,-5190.7,0.00021095,2]
[363013206,1748549460537,-7566.48,0.00021095,2]
[363013208,1748549460546,-1104.35,0.00021095,2]
[363013210,1748549460555,-6241.32,0.00021095,2]
[363013212,1748549460565,-250.28003811,0.00021095,2]
[363013214,1748549460574,-5362.8,0.00021095,2]
[363013216,1748549460583,-430.0,0.00021095,2]
[363013218,1748549460592,-430.0,0.00021095,2]
[363013220,1748549460602,-641.57,0.00021095,2]
[363013222,1748549460616,-447.91,0.00021095,2]
[363013224,1748549460625,-1205.76,0.00021095,2]
[363013226,1748549460634,-3425.09,0.00021095,2]
[363013228,1748549460643,-5494.42,0.00021095,2]
[363013230,1748549460654,-3014.44826507,0.00021107,4]
[363013232,1748549460663,-5000.0,0.00021162,2]
[363013234,1748549460671,-600.0,0.00021164,2]
[363013236,1748549460681,-581.35987878,0.0002121,2]
[363013238,1748549460690,-4000.0,0.00021266,4]
[363013240,1748549460700,-199.36839248,0.00021269,2]
[363013242,1748549460709,-157.139693,0.00021279,2]
[363013244,1748549460718,-157.139693,0.00021279,2]
[363013246,1748549460728,-3014.44826507,0.00021279,5]
[363013248,1748549460737,-160.0,0.00021368,2]
[363013250,1748549460746,-160.43817396,0.00021368,2]
[363013252,1748549460755,-151.0,0.00021369,2]
[363013254,1748549460764,-151.0,0.00021369,2]
[363013256,1748549460773,-151.0,0.00021369,2]
[363013258,1748549460783,-151.0,0.00021369,2]
[363013260,1748549460792,-151.0,0.00021369,2]
[363013263,1748549460802,-151.0,0.00021369,2]
[363013265,1748549460811,-151.0,0.00021369,2]
[363013266,1748549460820,-151.0,0.00021369,2]
[363013268,1748549460829,-151.0,0.00021369,2]
[363013270,1748549460838,-151.0,0.00021369,2]
[363013272,1748549460847,-205.166101,0.00021369,2]
[363013274,1748549460856,-205.166101,0.00021369,2]
[363013276,1748549460865,-1153.678468,0.00021369,2]
[363013278,1748549460874,-1153.678468,0.00021369,2]
[363013280,1748549460883,-151.0,0.00021369,2]
[363013282,1748549460893,-151.0,0.00021369,2]
[363013284,1748549460903,-281.172433,0.00021369,2]
[363013287,1748549460913,-281.172433,0.00021369,2]
[363013288,1748549460923,-340.669478,0.00021369,2]
[363013290,1748549460932,-340.669478,0.00021369,2]
[363013293,1748549460942,-151.0,0.00021369,2]
[363013295,1748549460951,-260.334711,0.00021369,2]
[363013297,1748549460959,-151.0,0.00021369,2]
[363013299,1748549460969,-151.0,0.00021369,2]
[363013301,1748549460978,-260.334711,0.00021369,2]
[363013303,1748549460987,-151.0,0.00021369,2]
[363013305,1748549460997,-151.0,0.00021369,2]
[363013307,1748549461006,-151.0,0.00021369,2]
[363013309,1748549461015,-4015.542169,0.00021369,2]
[363013311,1748549461024,-4015.542169,0.00021369,2]
[363013313,1748549461034,-239.490931,0.00021369,2]
[363013315,1748549461043,-239.490931,0.00021369,2]
[363013316,1748549461052,-151.0,0.00021369,2]
[363013318,1748549461061,-151.0,0.00021369,2]
[363013320,1748549461070,-302.068116,0.00021369,2]
[363013322,1748549461079,-302.068116,0.00021369,2]
[363013324,1748549461088,-254.242869,0.00021369,2]
[363013326,1748549461097,-1333.563387,0.00021369,2]
[363013328,1748549461107,-254.242869,0.00021369,2]
[363013330,1748549461116,-1558.393227,0.00021369,2]
[363013332,1748549461125,-1558.393227,0.00021369,2]
[363013334,1748549461134,-4029.361053,0.00021369,2]
[363013336,1748549461147,-430.0,0.00021369,2]
[363013338,1748549461157,-151.0,0.00021369,2]
[363013340,1748549461167,-260.551144,0.00021369,2]
[363013342,1748549461176,-260.551144,0.00021369,2]
[363013344,1748549461185,-430.0,0.00021369,2]
[363013346,1748549461194,-320.97949,0.00021369,2]
[363013348,1748549461204,-320.97949,0.00021369,2]
[363013350,1748549461213,-151.0,0.00021369,2]
[363013352,1748549461223,-2359.875458,0.00021369,2]
[363013354,1748549461232,-276.452001,0.00021369,2]
[363013356,1748549461241,-1915.52743,0.00021369,2]
[363013358,1748549461250,-2359.875458,0.00021369,2]
[363013360,1748549461259,-276.452001,0.00021369,2]
[363013362,1748549461268,-678.591457,0.00021369,2]
[363013364,1748549461278,-678.591457,0.00021369,2]
[363013366,1748549461287,-889.998081,0.00021369,2]
[363013368,1748549461297,-889.998081,0.00021369,2]
[363013370,1748549461306,-151.0,0.00021369,2]
[363013372,1748549461315,-151.0,0.00021369,2]
[363013374,1748549461325,-430.0,0.00021369,2]
[363013376,1748549461334,-244.505466,0.00021369,2]
[363013378,1748549461344,-430.0,0.00021369,2]
[363013380,1748549461354,-430.0,0.00021369,2]
[363013382,1748549461364,-244.505466,0.00021369,2]
[363013384,1748549461374,-168.8914,0.00021369,2]
[363013386,1748549461384,-168.8914,0.00021369,2]
[363013388,1748549461399,-151.0,0.00021369,2]
[363013390,1748549461409,-430.0,0.00021369,2]
[363013392,1748549461419,-1586.339018,0.00021369,2]
[363013394,1748549461429,-1586.339018,0.00021369,2]
[363013396,1748549461439,-262.046232,0.00021369,2]
[363013398,1748549461448,-262.046232,0.00021369,2]
[363013400,1748549461458,-430.0,0.00021369,2]
[363013402,1748549461467,-430.0,0.00021369,2]
[363013404,1748549461477,-430.0,0.00021369,2]
[363013406,1748549461486,-430.0,0.00021369,2]
[363013408,1748549461496,-511.29,0.00021369,2]
[363013410,1748549461505,-430.0,0.00021369,2]
[363013412,1748549461515,-430.0,0.00021369,2]
[363013414,1748549461524,-2547.3,0.00021369,2]
[363013416,1748549461534,-430.0,0.00021369,2]
[363013418,1748549461543,-631.19,0.00021369,2]
[363013420,1748549461553,-430.0,0.00021369,2]
[363013423,1748549461562,-151.0,0.00021369,2]
[363013425,1748549461572,-1493.21,0.00021369,2]
[363013426,1748549461582,-430.0,0.00021369,2]
[363013428,1748549461591,-430.0,0.00021369,2]
[363013429,1748549461601,-657.73,0.00021369,2]
[363013431,1748549461614,-430.0,0.00021369,2]
[363013433,1748549461624,-151.0,0.00021369,2]
[363013435,1748549461634,-430.0,0.00021369,2]
[363013437,1748549461649,-430.0,0.00021369,2]
[363013439,1748549461659,-430.0,0.00021369,2]
[363013441,1748549461670,-280.878596,0.00021369,2]
[363013443,1748549461680,-248.268931,0.00021369,2]
[363013445,1748549461692,-248.268931,0.00021369,2]
[363013447,1748549461702,-1197.968823,0.00021369,2]
[363013449,1748549461711,-1197.968823,0.00021369,2]
[363013451,1748549461722,-430.0,0.00021369,2]
[363013453,1748549461732,-1289.81,0.00021369,2]
[363013455,1748549461741,-430.0,0.00021369,2]
[363013457,1748549461751,-430.0,0.00021369,2]
[363013459,1748549461760,-379.61,0.00021369,2]
[363013461,1748549461769,-430.0,0.00021369,2]
[363013463,1748549461779,-555.82627088,0.00021369,2]
[363013465,1748549461788,-1598.38,0.00021369,2]
[363013467,1748549461797,-430.0,0.00021369,2]
[363013469,1748549461806,-2053.27,0.00021369,2]
[363013471,1748549461815,-1525.7,0.00021369,2]
[363013473,1748549461824,-566.83,0.00021369,2]
[363013475,1748549461834,-430.0,0.00021369,2]
[363013477,1748549461843,-924.2,0.00021369,2]
[363013479,1748549461852,-1613.56,0.00021369,2]
[363013481,1748549461862,-1663.74,0.00021369,2]
[363013483,1748549461871,-635.963784,0.00021369,2]
[363013485,1748549461880,-434.48,0.00021369,2]
[363013487,1748549461892,-635.963784,0.00021369,2]
[363013489,1748549461901,-541.63,0.00021369,2]
[363013491,1748549461910,-835.53,0.00021369,2]
[363013493,1748549461921,-430.0,0.00021369,2]
[363013495,1748549461930,-430.0,0.00021369,2]
[363013497,1748549461939,-697.06,0.00021369,2]
[363013499,1748549461949,-171.211019,0.00021369,2]
[363013501,1748549461958,-719.7,0.00021369,2]
[363013503,1748549461967,-171.211019,0.00021369,2]
[363013505,1748549461976,-430.0,0.00021369,2]
[363013507,1748549461986,-430.0,0.00021369,2]
[363013509,1748549461996,-1058.87,0.00021369,2]
[363013511,1748549462005,-330.21144787,0.00021369,2]
[363013513,1748549462015,-505.83,0.00021369,2]
[363013515,1748549462024,-4239.46,0.00021369,2]
[363013517,1748549462033,-430.0,0.00021369,2]
[363013519,1748549462043,-430.0,0.00021369,2]
[363013521,1748549462052,-430.0,0.00021369,2]
[363013523,1748549462062,-430.0,0.00021369,2]
[363013525,1748549462071,-151.0,0.00021369,2]
[363013527,1748549462079,-684.87,0.00021369,2]
[363013529,1748549462089,-490.0,0.00021369,2]
[363013531,1748549462098,-766.46,0.00021369,2]
[363013533,1748549462108,-1884.25,0.00021369,2]
[363013534,1748549462117,-8614.59,0.00021369,2]
[363013536,1748549462126,-430.0,0.00021369,2]
[363013538,1748549462136,-430.0,0.00021369,2]
[363013540,1748549462147,-9593.71,0.00021369,2]
[363013542,1748549462157,-500.0,0.00021369,2]
[363013544,1748549462167,-430.0,0.00021369,2]
[363013546,1748549462176,-430.0,0.00021369,2]
[363013548,1748549462186,-430.0,0.00021369,2]
[363013550,1748549462196,-2177.87,0.00021369,2]
[363013552,1748549462207,-1506.744032,0.00021369,2]
[363013554,1748549462217,-3170.25,0.00021369,2]
[363013556,1748549462228,-1506.744032,0.00021369,2]
[363013558,1748549462238,-731.21,0.00021369,2]
[363013561,1748549462248,-4753.34,0.00021369,2]
[363013562,1748549462257,-3190.48,0.00021369,2]
[363013564,1748549462267,-151.0,0.00021369,2]
[363013567,1748549462277,-151.0,0.00021369,2]
[363013568,1748549462287,-8930.54,0.00021369,2]
[363013570,1748549462296,-293.88189208,0.00021369,2]
[363013572,1748549462306,-1845.48,0.00021369,2]
[363013574,1748549462315,-3276.45,0.00021369,2]
[363013576,1748549462325,-430.0,0.00021369,2]
[363013578,1748549462334,-962.473811,0.00021369,2]
[363013580,1748549462344,-1439.05,0.00021369,2]
[363013582,1748549462353,-962.473811,0.00021369,2]
[363013585,1748549462363,-342.862776,0.00021369,2]
[363013587,1748549462373,-5099.18,0.00021369,2]
[363013589,1748549462383,-430.0,0.00021369,2]
[363013591,1748549462395,-342.862776,0.00021369,2]
[363013593,1748549462405,-1486.634382,0.00021369,2]
[363013595,1748549462415,-1486.634382,0.00021369,2]
[363013597,1748549462425,-2614.13,0.00021369,2]
[363013599,1748549462437,-3219.84,0.00021369,2]
[363013601,1748549462448,-765.63,0.00021369,2]
[363013603,1748549462458,-3876.68,0.00021369,2]
[363013605,1748549462469,-430.0,0.00021369,2]
[363013607,1748549462480,-495.3,0.00021369,2]
[363013609,1748549462491,-2095.37,0.00021369,2]
[363013611,1748549462500,-11864.57,0.00021369,2]
[363013613,1748549462510,-725.41,0.00021369,2]
[363013614,1748549462519,-430.0,0.00021369,2]
[363013616,1748549462529,-574.83,0.00021369,2]
[363013618,1748549462538,-674.31,0.00021369,2]
[363013621,1748549462549,-899.16,0.00021369,2]
[363013622,1748549462558,-953.05,0.00021369,2]
[363013624,1748549462567,-430.0,0.00021369,2]
[363013626,1748549462578,-1910.48,0.00021369,2]